bitfinex/quotes_BTCUSD_20240627
["timestamp","ask_amount","ask_price","bid_price","bid_amount"]
[1719493697942,4.02e-05,61693.0,61690.0,0.18533898]
[1719493698113,4.02e-05,61693.0,61691.0,0.1347534]
[1719493698355,4.02e-05,61693.0,61692.0,0.18533898]
[1719493698555,0.1621322,61693.0,61692.0,0.21285485]
[1719493698669,0.1621322,61693.0,61692.0,0.34761022]
[1719493699119,4.02e-05,61693.0,61692.0,0.21285485]
[1719493699849,0.4871572,61693.0,61692.0,0.21285485]
[1719493700042,0.8113422,61693.0,61692.0,0.16233898]
[1719493700256,0.486325,61687.0,61686.0,0.013]
[1719493700543,0.486325,61687.0,61686.0,0.31009825]
[1719493700781,0.810542,61687.0,61686.0,0.31009825]
[1719493700996,0.810542,61687.0,61686.0,0.31010477]
[1719493701220,0.810542,61687.0,61686.0,0.17533898]
[1719493701424,1.18339706,61687.0,61686.0,0.013]
[1719493701631,1.134759,61687.0,61686.0,0.013]
[1719493701837,1.18341102,61687.0,61686.0,0.013]
[1719493702042,1.134759,61687.0,61686.0,0.013]
[1719493702723,1.18341181,61687.0,61686.0,0.013]
[1719493702915,1.134759,61687.0,61686.0,0.013]
[1719493703709,1.248059,61687.0,61686.0,0.013]
[1719493703846,1.268059,61687.0,61686.0,0.013]
[1719493704061,1.248059,61687.0,61686.0,0.013]
[1719493704354,1.134259,61687.0,61686.0,0.013]
[1719493704553,1.18290815,61687.0,61686.0,0.013]
[1719493704781,0.01,61688.0,61686.0,0.25523898]
[1719493704782,0.04864915,61688.0,61686.0,0.25523898]
[1719493704988,0.162108,61687.0,61686.0,0.0929]
[1719493705200,0.162108,61687.0,61686.0,0.1159]
[1719493705559,0.04864915,61690.0,61686.0,0.1159]
[1719493705560,0.04864915,61691.0,61686.0,0.1159]
[1719493705762,0.0738573,61693.0,61686.0,0.1159]
[1719493705763,0.1629742,61693.0,61687.0,0.15775523]
[1719493705964,0.162096,61692.0,61687.0,0.023]
[1719493706165,0.21162235,61693.0,61687.0,0.023]
[1719493706392,0.21074415,61692.0,61687.0,0.023]
[1719493706594,0.04864915,61691.0,61688.0,0.18319898]
[1719493706924,0.486294,61691.0,61690.0,0.08130346]
[1719493707053,0.81049,61691.0,61690.0,0.24364244]
[1719493707259,0.2350687,61691.0,61690.0,0.24364244]
[1719493707479,0.486294,61691.0,61690.0,0.26664244]
[1719493707732,0.53494179,61691.0,61690.0,0.26664244]
[1719493707900,0.04864779,61692.0,61690.0,0.26664244]
[1719493708104,0.04864779,61692.0,61691.0,0.18533898]
[1719493708316,0.162095,61692.0,61691.0,0.18533898]
[1719493708694,0.162108,61687.0,61686.0,0.013]
[1719493708994,0.04865111,61687.0,61686.0,0.19833898]
[1719493709795,0.162099,61691.0,61686.0,0.19833898]
[1719493709943,0.04865283,61687.0,61686.0,0.036]
[1719493710143,0.21075683,61689.0,61686.0,0.036]
[1719493710347,0.21075683,61689.0,61687.0,0.023]
[1719493710348,0.04865283,61689.0,61687.0,0.023]
[1719493710960,0.21075683,61689.0,61687.0,0.023]
[1719493711160,0.07297925,61689.0,61687.0,0.023]
[1719493711585,0.23508225,61689.0,61687.0,0.023]
[1719493711789,0.09730566,61691.0,61687.0,0.023]
[1719493711790,0.53497098,61688.0,61687.0,0.023]
[1719493712023,0.09730566,61691.0,61687.0,0.023]
[1719493712024,0.07297925,61689.0,61687.0,0.023]
[1719493712243,0.04865357,61691.0,61687.0,0.023]
[1719493712658,0.04865357,61692.0,61687.0,0.023]
[1719493712904,0.04865357,61692.0,61687.0,0.033]
[1719493713107,0.04865004,61692.0,61687.0,0.033]
[1719493713309,0.04865004,61692.0,61687.0,0.185108]
[1719493713584,0.04865004,61692.0,61687.0,0.195108]
[1719493713723,0.04865004,61692.0,61688.0,0.01]
[1719493713925,0.04865004,61692.0,61687.0,0.023]
[1719493713926,0.04865004,61692.0,61689.0,0.023]
[1719493714351,0.04865004,61692.0,61686.0,0.013]
[1719493714352,0.04865004,61692.0,61687.0,0.023]
[1719493715662,0.04864995,61692.0,61687.0,0.023]
[1719493715926,0.21074895,61691.0,61687.0,0.023]
[1719493716041,0.21074895,61691.0,61688.0,0.16233898]
[1719493716042,0.324206,61689.0,61688.0,0.16233898]
[1719493716249,0.810515,61689.0,61688.0,0.16233898]
[1719493716452,0.486309,61689.0,61688.0,0.16233898]
[1719493716657,0.55928392,61689.0,61688.0,0.16233898]
[1719493717704,0.55928392,61689.0,61688.0,0.16173362]
[1719493718089,0.55928392,61689.0,61688.0,0.18963733]
[1719493718090,0.23507792,61689.0,61688.0,0.18963733]
[1719493718299,0.55928392,61689.0,61688.0,0.18963733]
[1719493718563,0.55928392,61689.0,61688.0,0.16173362]
[1719493718691,0.23507792,61689.0,61688.0,0.16173362]
[1719493718894,0.55928392,61689.0,61688.0,0.16173362]
[1719493719705,0.53496267,61689.0,61688.0,0.16173362]
[1719493719911,0.07297492,61691.0,61688.0,0.15973362]
[1719493720168,0.0972999,61692.0,61690.0,0.08130346]
[1719493720169,0.04865269,61692.0,61690.0,0.08130346]
[1719493720486,0.0008802,61693.0,61691.0,0.24103898]
[1719493720668,0.0008802,61693.0,61691.0,0.26403898]
[1719493720894,0.0008802,61693.0,61692.0,0.75872498]
[1719493721208,0.0008802,61693.0,61692.0,1.57483502]
[1719493721549,0.0008802,61693.0,61692.0,1.57483312]
[1719493721758,0.0008802,61693.0,61692.0,1.44010698]
[1719493722164,0.0008802,61693.0,61692.0,1.57483346]
[1719493722401,0.0008802,61693.0,61692.0,1.44010698]
[1719493723168,0.0008802,61693.0,61692.0,1.51640698]
[1719493723402,0.0008802,61693.0,61692.0,0.38173898]
[1719493723603,0.0008802,61693.0,61692.0,0.86802498]
[1719493724002,0.0008802,61693.0,61692.0,1.19221598]
[1719493724786,0.04861048,61701.0,61699.0,0.162076]
[1719493725005,0.12152622,61706.0,61699.0,0.162076]
[1719493725006,0.04861048,61705.0,61700.0,0.36934244]
[1719493725217,0.07291573,61709.0,61708.0,0.189]
[1719493725429,0.0122984,61717.0,61716.0,0.496097]
[1719493725639,0.0122984,61717.0,61716.0,0.33437098]
[1719493725850,0.0122984,61717.0,61716.0,0.36403898]
[1719493726324,0.0122984,61717.0,61716.0,0.68810398]
[1719493726589,0.0122984,61717.0,61716.0,0.36403898]
[1719493727553,0.5003864,61717.0,61716.0,0.16233898]
[1719493727769,0.5003864,61717.0,61703.0,0.0803]
[1719493727770,0.002,61705.0,61703.0,0.0803]
[1719493727969,0.002,61705.0,61704.0,0.16233898]
[1719493727970,0.164062,61705.0,61704.0,0.16233898]
[1719493728868,0.488184,61705.0,61704.0,0.16233898]
[1719493729085,0.002,61707.0,61704.0,0.16233898]
[1719493729281,0.07279419,61712.0,61704.0,0.16233898]
[1719493729282,0.164061,61705.0,61704.0,0.16233898]
[1719493730107,0.812305,61705.0,61704.0,0.16233898]
[1719493730321,0.812305,61705.0,61704.0,0.18533898]
[1719493730322,0.164061,61705.0,61704.0,0.18533898]
[1719493730539,0.812305,61705.0,61704.0,0.16233898]
[1719493731194,0.002,61705.0,61704.0,0.16233898]
[1719493731364,0.164061,61705.0,61704.0,0.16233898]
[1719493732002,0.1215,61715.0,61705.0,0.0818]
[1719493732003,0.04852314,61715.0,61705.0,0.0818]
[1719493732207,0.0122984,61717.0,61714.0,0.08130346]
[1719493732442,0.0122984,61717.0,61715.0,0.18533898]
[1719493734615,0.0122984,61717.0,61715.0,0.34737198]
[1719493735331,0.0122984,61717.0,61716.0,0.24413898]
[1719493735583,0.0122984,61717.0,61716.0,0.75323598]
[1719493735858,0.0122984,61717.0,61716.0,0.26713898]
[1719493736074,0.0122984,61717.0,61716.0,0.16233898]
[1719493736075,0.5003864,61717.0,61716.0,0.16233898]
[1719493736293,0.5003864,61717.0,61704.0,0.324122]
[1719493736294,0.162051,61709.0,61704.0,0.1045]
[1719493736501,0.164045,61711.0,61705.0,0.16233898]
[1719493737120,0.002,61706.0,61705.0,0.16233898]
[1719493737331,0.164058,61706.0,61705.0,0.16233898]
[1719493737952,0.002,61706.0,61705.0,0.16233898]
[1719493738613,0.002,61706.0,61705.0,0.18533898]
[1719493738822,0.002,61709.0,61705.0,0.18533898]
[1719493739030,0.37252758,61714.0,61706.0,0.023]
[1719493739031,0.002,61707.0,61706.0,0.023]
[1719493739435,0.002,61707.0,61706.0,0.10430346]
[1719493739639,0.002,61712.0,61707.0,0.32411]
[1719493739842,0.002,61712.0,61709.0,0.16205]
[1719493740065,0.12795197,61722.0,61707.0,0.32411]
[1719493740067,0.31270578,61790.0,61715.0,0.105]
[1719493740285,0.01604128,61740.0,61739.0,1.023944]
[1719493740493,0.00839,61768.0,61739.0,1.023944]
[1719493740494,0.04840803,61779.0,61775.0,0.49906973]
[1719493740705,0.10300157,61801.0,61795.0,1.209125]
[1719493740706,0.09686856,61796.0,61795.0,1.209125]
[1719493740915,0.04995,61815.0,61813.0,0.6805032]
[1719493741172,0.04995,61815.0,61813.0,3.9434166]
[1719493741378,0.0122984,61839.0,61813.0,3.9434166]
[1719493741379,0.0122984,61839.0,61821.0,0.761071]
[1719493741587,0.0122984,61839.0,61821.0,0.7792402]
[1719493741588,0.72751146,61822.0,61821.0,0.7792402]
[1719493741793,0.72751146,61822.0,61821.0,0.50571986]
[1719493742002,0.72751146,61822.0,61821.0,0.96055797]
[1719493742229,0.72751146,61822.0,61821.0,0.86175797]
[1719493742230,0.73234226,61822.0,61821.0,0.86175797]
[1719493742468,0.72751146,61822.0,61821.0,0.86175797]
[1719493742660,0.84773826,61822.0,61821.0,0.35906582]
[1719493742870,1.74500126,61822.0,61821.0,0.45425244]
[1719493743074,1.74500126,61822.0,61815.0,0.0476021]
[1719493743075,0.0168308,61816.0,61815.0,0.0476021]
[1719493743280,0.01,61816.0,61815.0,0.35919837]
[1719493743798,0.2,61820.0,61806.0,0.14255299]
[1719493743799,0.161785,61811.0,61806.0,0.14255299]
[1719493744006,0.161785,61811.0,61790.0,0.01]
[1719493744007,0.1,61810.0,61807.0,0.35920584]
[1719493744217,0.2,61807.0,61801.0,0.14255299]
[1719493744425,0.2,61807.0,61802.0,0.35928086]
[1719493744426,0.485412,61803.0,61802.0,0.35928086]
[1719493744636,1.47325,61803.0,61802.0,0.35928086]
[1719493744898,1.47325,61803.0,61799.0,0.09496467]
[1719493744899,0.2,61800.0,61799.0,0.09496467]
[1719493745143,0.2,61800.0,61793.0,0.09496467]
[1719493745144,0.41,61794.0,61793.0,0.09496467]
[1719493745349,0.41,61794.0,61786.0,0.1424301]
[1719493745350,0.01,61787.0,61786.0,0.1424301]
[1719493745562,0.0828,61791.0,61786.0,0.86244525]
[1719493745769,0.01,61784.0,61783.0,0.09487329]
[1719493745972,0.01,61784.0,61769.0,0.21012929]
[1719493745973,0.01,61783.0,61778.0,0.14230994]
[1719493746194,0.01,61783.0,61781.0,0.11859442]
[1719493746407,0.01,61779.0,61767.0,0.01]
[1719493746619,0.1,61786.0,61778.0,0.1422139]
[1719493746620,0.01,61782.0,61778.0,0.1422139]
[1719493746832,0.01,61782.0,61767.0,0.01]
[1719493746833,0.161859,61782.0,61780.0,0.1422139]
[1719493747047,0.01,61780.0,61779.0,0.14222494]
[1719493747302,0.323704,61785.0,61772.0,0.21000401]
[1719493747303,0.107,61776.0,61772.0,0.21000401]
[1719493747499,0.01,61765.0,61762.0,0.1422322]
[1719493747706,0.01,61768.0,61763.0,0.35946531]
[1719493747915,0.01,61768.0,61754.0,0.09130346]
[1719493747916,0.01,61768.0,61766.0,0.09485922]
[1719493748126,0.01,61768.0,61765.0,0.11857402]
[1719493748127,0.01,61768.0,61767.0,0.45432453]
[1719493748329,0.495688,61768.0,61767.0,0.45432453]
[1719493748539,0.01,61766.0,61765.0,0.09485922]
[1719493748760,0.01,61766.0,61765.0,0.35946659]
[1719493748958,0.171901,61766.0,61765.0,0.35946659]
[1719493749163,0.271901,61766.0,61765.0,0.35946659]
[1719493749371,0.271901,61766.0,61754.0,0.29137044]
[1719493749372,0.01,61764.0,61754.0,0.29137044]
[1719493749577,0.171927,61756.0,61755.0,1.07279875]
[1719493749776,0.171927,61756.0,61755.0,0.35947157]
[1719493749777,0.495782,61756.0,61755.0,0.35947157]
[1719493750183,0.819637,61756.0,61755.0,0.35947157]
[1719493750562,1.143492,61756.0,61755.0,0.35947157]
[1719493750794,1.243492,61756.0,61755.0,0.35747157]
[1719493751015,1.51002571,61756.0,61755.0,0.35747157]
[1719493751202,1.51002571,61756.0,61731.0,0.0192939]
[1719493751203,0.01,61745.0,61744.0,0.09490219]
[1719493751406,0.21,61742.0,61741.0,0.11862774]
[1719493751606,0.495923,61738.0,61737.0,0.08130346]
[1719493751781,0.919872,61738.0,61737.0,0.08130346]
[1719493752286,0.02540128,61738.0,61737.0,0.24364244]
[1719493752423,0.01,61748.0,61737.0,0.7570775]
[1719493752424,0.161949,61748.0,61737.0,0.7570775]
[1719493752621,0.323845,61758.0,61747.0,0.19997077]
[1719493752830,0.161922,61758.0,61757.0,0.12876832]
[1719493753027,0.161922,61758.0,61757.0,0.15250075]
[1719493753028,0.81961,61758.0,61757.0,0.15250075]
[1719493753229,0.2,61768.0,61757.0,0.15250075]
[1719493753230,0.42946,61775.0,61757.0,0.24364244]
[1719493753478,0.495656,61772.0,61771.0,0.08130346]
[1719493753695,0.485656,61772.0,61771.0,0.08130346]
[1719493753861,0.161885,61772.0,61771.0,0.08130346]
[1719493754064,0.809427,61772.0,61771.0,0.08130346]
[1719493754351,1.133198,61772.0,61771.0,0.08130346]
[1719493754534,1.143198,61772.0,61771.0,0.08130346]
[1719493754666,1.343198,61772.0,61771.0,0.08130346]
[1719493755066,1.666969,61772.0,61771.0,0.08130346]
[1719493755313,0.2,61776.0,61764.0,0.08130346]
[1719493755314,0.819517,61765.0,61764.0,0.08130346]
[1719493755515,1.143324,61765.0,61764.0,0.08130346]
[1719493755909,0.809517,61765.0,61764.0,0.08130346]
[1719493756234,0.819517,61765.0,61764.0,0.08130346]
[1719493756459,0.919517,61765.0,61764.0,0.08130346]
[1719493756636,0.01,61758.0,61757.0,0.12873757]
[1719493756842,1.11345401,61758.0,61757.0,0.08130346]
[1719493757096,1.31345401,61758.0,61757.0,0.08130346]
[1719493757389,1.76125401,61758.0,61757.0,0.08130346]
[1719493757844,1.75488673,61758.0,61757.0,0.08130346]
[1719493758703,2.47873073,61758.0,61757.0,0.08130346]
[1719493758904,1.95488673,61758.0,61757.0,0.08130346]
[1719493759109,1.75488673,61758.0,61757.0,0.08130346]
[1719493759312,0.58479293,61758.0,61757.0,0.08130346]
[1719493759719,0.90863693,61758.0,61757.0,0.08130346]
[1719493760163,1.23248093,61758.0,61757.0,0.08130346]
[1719493760373,1.79481464,61758.0,61757.0,0.08130346]
[1719493760576,1.63248093,61758.0,61757.0,0.08130346]
[1719493760782,1.95632493,61758.0,61757.0,0.08130346]
[1719493760992,1.23248093,61758.0,61757.0,0.08130346]
[1719493762124,0.58479293,61758.0,61757.0,0.08130346]
[1719493762547,0.90863693,61758.0,61757.0,0.08130346]
[1719493762767,0.90863693,61758.0,61748.0,0.07121966]
[1719493762768,0.1253942,61758.0,61748.0,0.07121966]
[1719493762972,0.809637,61756.0,61755.0,0.08130346]
[1719493763181,1.233492,61756.0,61755.0,0.08130346]
[1719493763597,0.585782,61756.0,61755.0,0.08130346]
[1719493764027,0.261927,61756.0,61755.0,0.08130346]
[1719493764229,0.909637,61756.0,61755.0,0.08130346]
[1719493764849,0.0253942,61758.0,61757.0,0.02]
[1719493765064,0.203,61778.0,61762.0,0.02]
[1719493765065,0.323764,61774.0,61762.0,0.02]
[1719493765277,0.323779,61771.0,61770.0,0.08130346]
[1719493765476,0.809446,61771.0,61770.0,0.08130346]
[1719493765697,1.133225,61771.0,61770.0,0.08130346]
[1719493765831,0.809446,61771.0,61770.0,0.08130346]
[1719493766460,0.323766,61773.0,61770.0,0.08130346]
[1719493766763,0.161888,61771.0,61770.0,0.08130346]
[1719493766966,0.323766,61773.0,61770.0,0.08130346]
[1719493766967,0.161885,61773.0,61770.0,0.82889268]
[1719493767249,0.161885,61773.0,61772.0,0.0712397]
[1719493767421,0.161883,61773.0,61772.0,0.49401107]
[1719493767624,0.161883,61773.0,61772.0,0.56525055]
[1719493767852,0.161883,61773.0,61772.0,0.20583882]
[1719493768339,0.161883,61773.0,61772.0,0.56524039]
[1719493768479,0.161883,61773.0,61772.0,0.20583882]
[1719493768681,0.485649,61773.0,61772.0,0.20583882]
[1719493768881,1.133181,61773.0,61772.0,0.13459934]
[1719493769698,0.80944,61771.0,61770.0,0.08130346]
[1719493769897,0.161888,61771.0,61770.0,0.21591002]
[1719493770310,0.485664,61771.0,61770.0,0.21591002]
[1719493770936,0.161888,61771.0,61770.0,0.21591002]
[1719493771542,0.323738,61779.0,61770.0,0.21591002]
[1719493771543,0.161885,61773.0,61770.0,0.21591002]
[1719493771747,0.1,61778.0,61771.0,0.13460656]
[1719493771977,0.1,61780.0,61777.0,0.08130346]
[1719493771978,0.261865,61780.0,61777.0,0.08130346]
[1719493772167,0.261865,61780.0,61778.0,0.13460656]
[1719493772168,0.1,61780.0,61778.0,0.13460656]
[1719493772306,0.1,61780.0,61777.0,0.24364244]
[1719493772307,0.1,61780.0,61779.0,0.13460656]
[1719493772735,0.1,61780.0,61779.0,0.13458955]
[1719493772948,0.1,61781.0,61779.0,0.13458955]
[1719493773152,0.1,61784.0,61780.0,0.13458628]
[1719493773350,0.1,61784.0,61781.0,0.13458628]
[1719493773559,0.261855,61784.0,61782.0,0.13458628]
[1719493773763,0.261855,61784.0,61783.0,0.13458628]
[1719493774200,0.261854,61784.0,61783.0,0.13458638]
[1719493774403,0.90927,61784.0,61783.0,0.13458638]
[1719493775629,0.161866,61780.0,61777.0,0.08130346]
[1719493775815,0.161866,61780.0,61778.0,0.13459636]
[1719493775816,0.1,61779.0,61778.0,0.13459636]
[1719493776240,0.161861,61782.0,61778.0,0.13459636]
[1719493776465,0.161861,61782.0,61779.0,0.13459636]
[1719493776676,0.161861,61782.0,61780.0,0.13459636]
[1719493776932,0.161861,61782.0,61777.0,0.08130346]
[1719493776933,0.4,61790.0,61781.0,0.13459636]
[1719493777131,0.685514,61790.0,61789.0,0.08130346]
[1719493777335,1.20919,61790.0,61789.0,0.08130346]
[1719493777460,1.548919,61790.0,61789.0,0.08130346]
[1719493777663,1.548919,61790.0,61789.0,0.0810016]
[1719493777664,1.872595,61790.0,61789.0,0.0810016]
[1719493778292,1.972595,61790.0,61789.0,0.0810016]
[1719493778944,0.323724,61781.0,61777.0,0.08130346]
[1719493779118,0.161867,61779.0,61778.0,0.13459603]
[1719493779323,0.585601,61779.0,61778.0,0.13459603]
[1719493779918,0.1,61779.0,61778.0,0.13459603]
[1719493780116,0.323693,61787.0,61778.0,0.13459603]
[1719493780487,0.323693,61787.0,61786.0,0.08130346]
[1719493780704,1.209231,61787.0,61786.0,0.21589949]
[1719493780929,1.209231,61787.0,61786.0,0.08130346]
[1719493781130,1.532924,61787.0,61786.0,0.08130346]
[1719493781337,1.332924,61787.0,61786.0,0.21588785]
[1719493781520,0.809231,61787.0,61786.0,0.21588785]
[1719493781803,0.809231,61787.0,61786.0,0.08130346]
[1719493782004,1.132924,61787.0,61786.0,0.21587689]
[1719493782204,1.232924,61787.0,61786.0,0.21588871]
[1719493782408,1.232924,61787.0,61786.0,0.08130346]
[1719493782612,1.232924,61787.0,61786.0,0.21588322]
[1719493782613,0.909231,61787.0,61786.0,0.21588322]
[1719493783203,0.1,61787.0,61786.0,0.21588322]
[1719493783548,0.485538,61787.0,61786.0,0.21587458]
[1719493783752,0.585538,61787.0,61786.0,0.21587458]
[1719493783971,0.1,61787.0,61786.0,0.21587458]
[1719493784371,0.1,61793.0,61786.0,0.21587458]
[1719493784717,0.1,61793.0,61786.0,0.08130346]
[1719493785038,0.161833,61792.0,61787.0,0.13455724]
[1719493785348,0.26183,61793.0,61788.0,0.13455724]
[1719493785517,0.26183,61793.0,61789.0,0.13455724]
[1719493785721,0.26183,61793.0,61790.0,0.13455724]
[1719493785938,0.26183,61793.0,61791.0,0.13455724]
[1719493786137,0.26183,61793.0,61792.0,0.13455724]
[1719493786276,0.1,61793.0,61792.0,0.13455724]
[1719493786477,0.1118,61805.0,61792.0,0.13455724]
[1719493786478,0.423617,61802.0,61792.0,0.13455724]
[1719493786680,0.585422,61802.0,61801.0,0.08130346]
[1719493786880,1.209036,61802.0,61801.0,0.08130346]
[1719493787084,1.761634,61802.0,61801.0,0.08130346]
[1719493787289,1.562504,61802.0,61801.0,0.08130346]
[1719493787488,1.662504,61802.0,61801.0,0.08130346]
[1719493787754,1.986118,61802.0,61801.0,0.0810016]
[1719493788289,1.986118,61802.0,61794.0,0.08130346]
[1719493788290,0.485475,61795.0,61794.0,0.08130346]
[1719493788577,0.473008,61795.0,61794.0,0.08130346]
[1719493788795,0.717351,61795.0,61794.0,0.08130346]
[1719493789028,0.231876,61795.0,61794.0,0.08130346]
[1719493789234,0.1,61795.0,61794.0,0.08130346]
[1719493789441,0.585475,61795.0,61794.0,0.08130346]
[1719493789989,0.585475,61795.0,61786.0,0.12903648]
[1719493789990,0.161846,61787.0,61786.0,0.08130346]
[1719493790199,0.161846,61787.0,61786.0,0.21587308]
[1719493790512,0.261846,61787.0,61786.0,0.21587308]
[1719493790719,0.261846,61787.0,61786.0,0.08130346]
[1719493790720,0.585538,61787.0,61786.0,0.08130346]
[1719493790967,0.585538,61787.0,61786.0,0.21586834]
[1719493791178,0.585538,61787.0,61786.0,0.08130346]
[1719493791378,0.585538,61787.0,61786.0,0.0782577]
[1719493791379,1.758443,61787.0,61786.0,0.0782577]
[1719493791605,1.758443,61787.0,61786.0,0.07086296]
[1719493791606,2.574414,61787.0,61786.0,0.07086296]
[1719493791798,2.246822,61787.0,61786.0,0.0659848]
[1719493792030,2.208822,61787.0,61786.0,0.0659848]
[1719493792172,2.158802,61787.0,61786.0,0.0659848]
[1719493792372,0.90923,61787.0,61786.0,0.0659848]
[1719493794682,0.90923,61787.0,61786.0,0.03357357]
[1719493794683,1.471801,61787.0,61786.0,0.03357357]
[1719493795111,0.1,61787.0,61786.0,0.03357357]
[1719493795547,0.323639,61798.0,61786.0,0.03357357]
[1719493795548,0.161844,61788.0,61786.0,0.03357357]
[1719493795758,0.261846,61787.0,61786.0,0.03357357]
[1719493795930,0.261846,61787.0,61786.0,0.16813979]
[1719493796313,0.261846,61787.0,61786.0,0.03357357]
[1719493796314,0.585538,61787.0,61786.0,0.03357357]
[1719493797536,0.26092958,61864.0,61786.0,0.03357357]
[1719493797537,0.13668066,61817.0,61794.0,0.1]
[1719493797707,0.161791,61808.0,61805.0,0.08130346]
[1719493797862,0.161792,61808.0,61805.0,0.0810016]
[1719493798061,0.323575,61810.0,61805.0,0.0810016]
[1719493798062,0.161789,61809.0,61805.0,0.0810016]
[1719493798262,0.323575,61810.0,61805.0,0.0810016]
[1719493798263,0.161791,61808.0,61805.0,0.0810016]
[1719493798625,0.2,61812.0,61805.0,0.0810016]
[1719493798626,0.323567,61811.0,61805.0,0.0810016]
[1719493798787,0.161789,61809.0,61805.0,0.0810016]
[1719493799179,0.16179,61809.0,61805.0,0.0810016]
[1719493799408,0.42356,61813.0,61798.0,0.08130346]
[1719493799409,0.616693,61806.0,61798.0,0.08130346]
[1719493799596,0.454896,61806.0,61805.0,0.08130346]
[1719493799797,0.2,61808.0,61805.0,0.08130346]
[1719493800114,0.161792,61808.0,61805.0,0.08130346]
[1719493800315,0.161796,61806.0,61805.0,0.08130346]
[1719493800651,0.1,61806.0,61805.0,0.08130346]
[1719493801523,0.1,61808.0,61805.0,0.08130346]
[1719493801736,0.2931,61816.0,61805.0,0.08130346]
[1719493801948,0.2931,61816.0,61812.0,0.08130346]
[1719493801949,0.161773,61815.0,61812.0,0.08130346]
[1719493802159,0.2931,61816.0,61812.0,0.08130346]
[1719493802610,0.161773,61815.0,61812.0,0.08130346]
[1719493802836,0.254344,61815.0,61812.0,0.08130346]
[1719493803278,0.616643,61816.0,61812.0,0.08130346]
[1719493803491,0.1,61815.0,61812.0,0.08130346]
[1719493803694,0.261773,61815.0,61812.0,0.08130346]
[1719493804423,0.616643,61816.0,61812.0,0.08130346]
[1719493804424,0.2931,61816.0,61812.0,0.08130346]
[1719493804648,0.72751146,61822.0,61821.0,0.65917281]
[1719493804856,0.72751146,61822.0,61821.0,1.93945379]
[1719493805055,0.72751146,61822.0,61821.0,1.61593979]
[1719493805056,0.47051146,61822.0,61821.0,1.61593979]
[1719493805258,0.47051146,61822.0,61821.0,1.26942579]
[1719493805467,0.47051146,61822.0,61821.0,1.18590998]
[1719493805675,0.47051146,61822.0,61821.0,1.26942579]
[1719493805889,0.47051146,61822.0,61821.0,0.94591179]
[1719493806095,0.47051146,61822.0,61821.0,0.70063898]
[1719493806309,0.47051146,61822.0,61821.0,0.2383]
[1719493806505,0.47051146,61822.0,61819.0,0.18130346]
[1719493806722,0.47051146,61822.0,61821.0,0.1]
[1719493807184,0.47051146,61822.0,61821.0,0.16394836]
[1719493807399,0.47051146,61822.0,61821.0,0.54585479]
[1719493807620,0.47051146,61822.0,61821.0,0.46233898]
[1719493807967,0.47051146,61822.0,61821.0,0.09969814]
[1719493808193,0.47051146,61822.0,61819.0,0.08130346]
[1719493808194,0.57051146,61822.0,61819.0,0.08130346]
[1719493808447,0.57051146,61822.0,61819.0,0.07930346]
[1719493808448,0.161759,61820.0,61819.0,0.07930346]
[1719493808677,0.161759,61820.0,61809.0,0.2]
[1719493808678,0.161778,61813.0,61809.0,0.09969814]
[1719493808913,0.161777,61814.0,61812.0,0.08130346]
[1719493809122,0.161777,61814.0,61805.0,0.28130346]
[1719493809123,0.161789,61809.0,61807.0,0.09969814]
[1719493809345,0.16179,61809.0,61805.0,0.1810016]
[1719493809543,0.1,61808.0,61805.0,0.1810016]
[1719493809763,0.261791,61808.0,61805.0,0.1810016]
[1719493810169,0.1,61808.0,61805.0,0.08130346]
[1719493810606,0.1,61818.0,61805.0,0.1810016]
[1719493810840,0.161783,61811.0,61805.0,0.1810016]
[1719493811049,0.1,61810.0,61805.0,0.1810016]
[1719493811224,0.32356,61813.0,61805.0,0.1810016]
[1719493811383,0.1,61812.0,61805.0,0.1810016]
[1719493811784,0.1,61812.0,61806.0,0.06394836]
[1719493812011,0.1,61812.0,61805.0,0.3810016]
[1719493812216,0.1,61812.0,61807.0,0.06394836]
[1719493812418,0.1,61812.0,61805.0,0.40056905]
[1719493812419,0.1,61812.0,61811.0,0.28351581]
[1719493812590,0.323526,61819.0,61809.0,0.29969814]
[1719493812796,0.485302,61817.0,61816.0,0.08130346]
[1719493813029,0.585302,61817.0,61816.0,0.08130346]
[1719493813189,0.261767,61817.0,61816.0,0.08130346]
[1719493813397,0.26123433,61820.0,61816.0,0.08130346]
[1719493813604,0.161767,61817.0,61816.0,0.08130346]
[1719493813999,0.1,61819.0,61816.0,0.08130346]
[1719493814426,0.1,61819.0,61818.0,0.28311095]
[1719493814658,0.47051146,61822.0,61820.0,0.26394836]
[1719493815015,0.47051146,61822.0,61820.0,0.2]
[1719493816373,0.1,61821.0,61820.0,0.2]
[1719493816575,0.1,61821.0,61818.0,0.09969814]
[1719493816576,0.161761,61820.0,61818.0,0.09969814]
[1719493816820,0.161761,61820.0,61816.0,0.28130346]
[1719493816821,0.161759,61820.0,61817.0,0.09969814]
[1719493817019,0.1,61821.0,61818.0,0.09969814]
[1719493817222,0.16176,61820.0,61818.0,0.09969814]
[1719493817849,0.1,61821.0,61818.0,0.09939614]
[1719493817850,0.261758,61821.0,61818.0,0.09939614]
[1719493818193,0.1,61821.0,61818.0,0.1633445]
[1719493818480,0.261759,61821.0,61818.0,0.09939614]
[1719493818686,0.1,61821.0,61818.0,0.09939614]
[1719493819099,0.323525,61819.0,61818.0,0.09939614]
[1719493819376,0.323525,61819.0,61812.0,0.26394836]
[1719493819377,0.3931,61819.0,61815.0,0.09939614]
[1719493819526,0.3931,61819.0,61812.0,0.08130346]
[1719493819527,0.161778,61813.0,61812.0,0.08130346]
[1719493819732,0.485334,61813.0,61812.0,0.08130346]
[1719493819937,0.90889,61813.0,61812.0,0.08130346]
[1719493820563,0.161796,61806.0,61805.0,0.1806996]
[1719493820783,0.1388,61818.0,61805.0,0.1806996]
[1719493820784,0.47051146,61822.0,61817.0,0.2]
[1719493820985,0.63226546,61822.0,61821.0,0.08130346]
[1719493821209,1.05577446,61822.0,61821.0,0.08130346]
[1719493821628,1.37928346,61822.0,61821.0,0.0808856]
[1719493822238,1.40465472,61822.0,61821.0,0.0808856]
[1719493823372,1.08114572,61822.0,61821.0,0.0808856]
[1719493823785,0.88898272,61822.0,61813.0,0.08130346]